[Event "*** Titled Tuesday Blitz"]
[Site "Chess.com"]
[Date "2019.11.05"]
[Round "4"]
[White "NZT72"]
[Black "MaximDlugy"]
[Result "1-0"]
[WhiteElo "2503"]
[BlackElo "2802"]
[TimeControl "180+2"]
[EndTime "13:54:35 PST"]
[Termination "NZT72 won on time"]

1. c4 {[%clk 0:03:01.9]} 1... c5 {[%clk 0:03:00.6]} 2. g3 {[%clk 0:03:02.8]}
2... Nc6 {[%clk 0:03:01]} 3. Bg2 {[%clk 0:03:03.7]} 3... g6 {[%clk 0:03:02.4]}
4. Nc3 {[%clk 0:03:04.4]} 4... Bg7 {[%clk 0:03:03.3]} 5. b3 {[%clk 0:03:05.4]}
5... Nh6 {[%clk 0:03:03.3]} 6. Bb2 {[%clk 0:03:00.6]} 6... Nf5 {[%clk
0:03:04.1]} 7. e3 {[%clk 0:02:55.9]} 7... O-O {[%clk 0:03:04.8]} 8. Nge2 {[%clk
0:02:55.6]} 8... a6 {[%clk 0:03:01.9]} 9. d3 {[%clk 0:02:51.6]} 9... b5 {[%clk
0:03:00]} 10. Qd2 {[%clk 0:02:48.4]} 10... Rb8 {[%clk 0:03:00.4]} 11. h4 {[%clk
0:02:34.7]} 11... h5 {[%clk 0:02:58.3]} 12. Ne4 {[%clk 0:02:28.3]} 12... Bxb2
{[%clk 0:02:44.4]} 13. Qxb2 {[%clk 0:02:28.9]} 13... d6 {[%clk 0:02:45.3]} 14.
Qd2 {[%clk 0:01:53.4]} 14... Bb7 {[%clk 0:02:42.3]} 15. g4 {[%clk 0:01:27.4]}
15... hxg4 {[%clk 0:02:30.2]} 16. h5 {[%clk 0:01:28.3]} 16... Ne5 {[%clk
0:02:26.4]} 17. hxg6 {[%clk 0:01:21]} 17... fxg6 {[%clk 0:02:21.4]} 18. Nf4
{[%clk 0:01:21.2]} 18... Qd7 {[%clk 0:02:05.5]} 19. O-O-O {[%clk 0:00:59.1]}
19... Ng7 {[%clk 0:00:54.3]} 20. Rh6 {[%clk 0:00:49.4]} 20... g5 {[%clk
0:00:40.5]} 21. Nxg5 {[%clk 0:00:31.7]} 21... Bxg2 {[%clk 0:00:35.1]} 22. Nxg2
{[%clk 0:00:32.4]} 22... Qf5 {[%clk 0:00:25]} 23. e4 {[%clk 0:00:15.9]} 23...
Qxf2 {[%clk 0:00:24.7]} 24. Rdh1 {[%clk 0:00:16.8]} 24... Qxd2+ {[%clk
0:00:24.1]} 25. Kxd2 {[%clk 0:00:17.8]} 25... Nf3+ {[%clk 0:00:23.4]} 26. Nxf3
{[%clk 0:00:18.6]} 26... gxf3 {[%clk 0:00:25.2]} 27. Ne3 {[%clk 0:00:15.5]}
27... Kf7 {[%clk 0:00:21.3]} 28. Rh7 {[%clk 0:00:13.6]} 28... e6 {[%clk
0:00:14.7]} 29. Rg1 {[%clk 0:00:11.2]} 29... Rg8 {[%clk 0:00:14.9]} 30. Rg3
{[%clk 0:00:11.9]} 30... f2 {[%clk 0:00:15.9]} 31. Rf3+ {[%clk 0:00:12.6]} 31...
Kg6 {[%clk 0:00:17]} 32. Rh2 {[%clk 0:00:11.5]} 32... Rbf8 {[%clk 0:00:17.4]}
33. Rg2+ {[%clk 0:00:12.3]} 33... Kh6 {[%clk 0:00:18.5]} 34. Ng4+ {[%clk
0:00:10.4]} 34... Kh7 {[%clk 0:00:11.7]} 35. Nf6+ {[%clk 0:00:06.9]} 35... Rxf6
{[%clk 0:00:11.4]} 36. Rxf6 {[%clk 0:00:06.6]} 36... bxc4 {[%clk 0:00:12.2]} 37.
bxc4 {[%clk 0:00:05.7]} 37... e5 {[%clk 0:00:06.9]} 38. Rfxf2 {[%clk 0:00:05.9]}
38... Ne6 {[%clk 0:00:04.3]} 39. Rf7+ {[%clk 0:00:06.3]} 39... Rg7 {[%clk
0:00:04.1]} 40. Rgxg7+ {[%clk 0:00:07]} 40... Nxg7 {[%clk 0:00:04.1]} 41. Ra7
{[%clk 0:00:08.9]} 41... Kg6 {[%clk 0:00:04.3]} 42. Rxa6 {[%clk 0:00:10.1]}
42... Ne8 {[%clk 0:00:04.3]} 43. Rc6 {[%clk 0:00:10.8]} 43... Kf7 {[%clk
0:00:04.4]} 44. Rc8 {[%clk 0:00:11.7]} 44... Ke7 {[%clk 0:00:06.3]} 45. Kc3
{[%clk 0:00:12.3]} 45... Kd7 {[%clk 0:00:08.2]} 46. Ra8 {[%clk 0:00:13.4]} 46...
Nc7 {[%clk 0:00:09]} 47. Rh8 {[%clk 0:00:14]} 47... Kc6 {[%clk 0:00:10.2]} 48.
Rh7 {[%clk 0:00:14.8]} 48... Ne6 {[%clk 0:00:11.9]} 49. a4 {[%clk 0:00:15]}
49... Nc7 {[%clk 0:00:11.6]} 50. Rh6 {[%clk 0:00:15.6]} 50... Na6 {[%clk
0:00:12]} 51. Rh8 {[%clk 0:00:15.4]} 51... Nb4 {[%clk 0:00:12.7]} 52. Rb8 {[%clk
0:00:14.7]} 52... Na6 {[%clk 0:00:10.3]} 53. Rc8+ {[%clk 0:00:15.5]} 53... Kb7
{[%clk 0:00:10.9]} 54. Rd8 {[%clk 0:00:15.8]} 54... Kc7 {[%clk 0:00:12]} 55. Rg8
{[%clk 0:00:16.4]} 55... Nb4 {[%clk 0:00:12.4]} 56. a5 {[%clk 0:00:16.2]} 56...
Kb7 {[%clk 0:00:12.4]} 57. Rg6 {[%clk 0:00:16.8]} 57... Kc6 {[%clk 0:00:12.2]}
58. Rh6 {[%clk 0:00:17.7]} 58... Na6 {[%clk 0:00:10]} 59. Rh8 {[%clk 0:00:18.7]}
59... Nb4 {[%clk 0:00:10.7]} 60. Rb8 {[%clk 0:00:19.3]} 60... Na2+ {[%clk
0:00:08.1]} 61. Kb2 {[%clk 0:00:20]} 61... Nb4 {[%clk 0:00:08.6]} 62. Rxb4
{[%clk 0:00:19.1]} 62... cxb4 {[%clk 0:00:09.2]} 63. Kb3 {[%clk 0:00:19.4]}
63... Kc5 {[%clk 0:00:08.7]} 64. Ka4 {[%clk 0:00:19.2]} 64... Kd4 {[%clk
0:00:06.8]} 65. Kxb4 {[%clk 0:00:20.3]} 65... Kxd3 {[%clk 0:00:08.2]} 66. a6
{[%clk 0:00:21.7]} 1-0

[Event "*** Titled Tuesday Blitz"]
[Site "Chess.com"]
[Date "2019.11.05"]
[Round "4"]
[White "Joshukid"]
[Black "ehrenfeld"]
[Result "1/2-1/2"]
[WhiteElo "2695"]
[BlackElo "2521"]
[TimeControl "180+2"]
[EndTime "13:54:46 PST"]
[Termination "Game drawn by repetition"]

1. Nf3 {[%clk 0:03:01.9]} 1... Nf6 {[%clk 0:02:57.6]} 2. c4 {[%clk 0:03:02.3]}
2... e6 {[%clk 0:02:56.4]} 3. g3 {[%clk 0:03:01.2]} 3... a6 {[%clk 0:02:55.4]}
4. Nc3 {[%clk 0:02:54.8]} 4... d5 {[%clk 0:02:54.7]} 5. cxd5 {[%clk 0:02:54.9]}
5... exd5 {[%clk 0:02:55.1]} 6. d4 {[%clk 0:02:56.8]} 6... Be7 {[%clk 0:02:55]}
7. Bg2 {[%clk 0:02:58]} 7... O-O {[%clk 0:02:55.8]} 8. O-O {[%clk 0:02:57.9]}
8... c6 {[%clk 0:02:56.3]} 9. Ne5 {[%clk 0:02:56.8]} 9... Bf5 {[%clk 0:02:56.3]}
10. Bf4 {[%clk 0:02:48.3]} 10... Nbd7 {[%clk 0:02:55.6]} 11. Re1 {[%clk
0:02:48]} 11... Bb4 {[%clk 0:02:48.4]} 12. Qb3 {[%clk 0:02:44.7]} 12... Bxc3
{[%clk 0:02:25.1]} 13. Qxc3 {[%clk 0:02:38.6]} 13... Nxe5 {[%clk 0:02:19.2]} 14.
dxe5 {[%clk 0:02:35.6]} 14... Ne4 {[%clk 0:02:17.8]} 15. Qb4 {[%clk 0:02:29.4]}
15... b5 {[%clk 0:01:43.3]} 16. Rad1 {[%clk 0:02:29.3]} 16... Qb6 {[%clk
0:01:27.3]} 17. Be3 {[%clk 0:02:13.9]} 17... c5 {[%clk 0:01:15.7]} 18. Bxe4
{[%clk 0:02:07.9]} 18... cxb4 {[%clk 0:01:09.4]} 19. Bxb6 {[%clk 0:02:03.1]}
19... dxe4 {[%clk 0:01:10.3]} 20. Bc5 {[%clk 0:02:01.9]} 20... Rfe8 {[%clk
0:00:59.4]} 21. Bxb4 {[%clk 0:01:49.7]} 21... Rxe5 {[%clk 0:01:00.3]} 22. Rd6
{[%clk 0:01:50.2]} 22... h5 {[%clk 0:00:56]} 23. Rc1 {[%clk 0:01:39.3]} 23...
Be6 {[%clk 0:00:55.8]} 24. a3 {[%clk 0:01:36]} 24... a5 {[%clk 0:00:49.1]} 25.
Bd2 {[%clk 0:01:30.7]} 25... Bc4 {[%clk 0:00:39.6]} 26. Bc3 {[%clk 0:01:18.5]}
26... Ree8 {[%clk 0:00:37.4]} 27. Kf1 {[%clk 0:01:10.6]} 27... a4 {[%clk
0:00:38.1]} 28. Rcd1 {[%clk 0:01:09.8]} 28... Rac8 {[%clk 0:00:34.6]} 29. h4
{[%clk 0:01:02]} 29... Rc5 {[%clk 0:00:34.9]} 30. Ke1 {[%clk 0:00:58.1]} 30...
Rf5 {[%clk 0:00:34.6]} 31. R1d4 {[%clk 0:00:55.4]} 31... Kh7 {[%clk 0:00:30.1]}
32. e3 {[%clk 0:00:48.3]} 32... g5 {[%clk 0:00:23.6]} 33. hxg5 {[%clk
0:00:45.5]} 33... Rxg5 {[%clk 0:00:24.5]} 34. Rd8 {[%clk 0:00:46.2]} 34... Rxd8
{[%clk 0:00:21.6]} 35. Rxd8 {[%clk 0:00:48.1]} 35... Kg6 {[%clk 0:00:22.2]} 36.
Re8 {[%clk 0:00:44.4]} 36... Bd3 {[%clk 0:00:17.5]} 37. Bd4 {[%clk 0:00:40.4]}
37... Rd5 {[%clk 0:00:14.2]} 38. Rg8+ {[%clk 0:00:37.3]} 38... Kf5 {[%clk
0:00:14]} 39. Kd2 {[%clk 0:00:36.3]} 39... Ke6 {[%clk 0:00:14.3]} 40. Rh8 {[%clk
0:00:36.2]} 40... Rf5 {[%clk 0:00:15]} 41. Ke1 {[%clk 0:00:35.4]} 41... Kd5
{[%clk 0:00:16.2]} 42. Rc8 {[%clk 0:00:32.4]} 42... Kd6 {[%clk 0:00:16.6]} 43.
Bg7 {[%clk 0:00:29.4]} 43... Kd7 {[%clk 0:00:16.6]} 44. Rc1 {[%clk 0:00:29.5]}
44... Ke6 {[%clk 0:00:15.9]} 45. Bf8 {[%clk 0:00:29]} 45... Bc4 {[%clk
0:00:16.2]} 46. Bg7 {[%clk 0:00:27.9]} 46... Rd5 {[%clk 0:00:17.2]} 47. Bd4
{[%clk 0:00:29.2]} 47... Kf5 {[%clk 0:00:18.2]} 48. Kd2 {[%clk 0:00:30.6]} 48...
Kg4 {[%clk 0:00:19.1]} 49. Rh1 {[%clk 0:00:29.7]} 49... Kf3 {[%clk 0:00:19.4]}
50. Ke1 {[%clk 0:00:30.9]} 50... Rf5 {[%clk 0:00:17.3]} 51. Rh2 {[%clk
0:00:25.6]} 51... Bd3 {[%clk 0:00:17.7]} 52. Bc3 {[%clk 0:00:25]} 52... Bc4
{[%clk 0:00:18.7]} 53. Bd4 {[%clk 0:00:26]} 53... Bd3 {[%clk 0:00:19.8]} 54. Rh4
{[%clk 0:00:27.7]} 54... Kg2 {[%clk 0:00:19.9]} 55. Rf4 {[%clk 0:00:26.7]} 55...
Rxf4 {[%clk 0:00:20.4]} 56. exf4 {[%clk 0:00:28.6]} 56... Kf3 {[%clk 0:00:20.7]}
57. Kd2 {[%clk 0:00:28.4]} 57... f5 {[%clk 0:00:16.9]} 58. Be3 {[%clk 0:00:28]}
58... Bc4 {[%clk 0:00:17.6]} 59. Kc3 {[%clk 0:00:29.4]} 59... Bd3 {[%clk
0:00:18.7]} 60. Kd4 {[%clk 0:00:30.3]} 60... Kg4 {[%clk 0:00:18.4]} 61. Ke5
{[%clk 0:00:30.7]} 61... Bc4 {[%clk 0:00:19.5]} 62. Kf6 {[%clk 0:00:32.2]} 62...
Bd3 {[%clk 0:00:20.5]} 63. Bd4 {[%clk 0:00:33.2]} 63... Bc4 {[%clk 0:00:21.6]}
64. Be3 {[%clk 0:00:28.8]} 64... Bd3 {[%clk 0:00:22.7]} 65. Ke5 {[%clk
0:00:30.4]} 65... Bc4 {[%clk 0:00:23.9]} 66. Kd4 {[%clk 0:00:32.1]} 66... Bd3
{[%clk 0:00:24.9]} 67. Kc3 {[%clk 0:00:33.7]} 67... Bc4 {[%clk 0:00:26]} 68. Bd4
{[%clk 0:00:35.2]} 68... Kf3 {[%clk 0:00:27.2]} 69. Be3 {[%clk 0:00:33]} 69...
Kg4 {[%clk 0:00:27.9]} 70. Kc2 {[%clk 0:00:33.9]} 70... Kf3 {[%clk 0:00:29.1]}
71. Kd2 {[%clk 0:00:35.4]} 71... Kg4 {[%clk 0:00:30.2]} 72. Kc3 {[%clk
0:00:37.3]} 72... Bd3 {[%clk 0:00:31.1]} 73. b3 {[%clk 0:00:38.3]} 73... axb3
{[%clk 0:00:31.9]} 74. Kxb3 {[%clk 0:00:39.5]} 74... Be2 {[%clk 0:00:32.8]} 75.
Kb4 {[%clk 0:00:40.7]} 75... Bf1 {[%clk 0:00:34]} 76. Kc3 {[%clk 0:00:42]} 76...
Be2 {[%clk 0:00:35.3]} 77. Kd2 {[%clk 0:00:43.2]} 77... Bd3 {[%clk 0:00:36.5]}
78. Bd4 {[%clk 0:00:44.6]} 78... Bc4 {[%clk 0:00:37.7]} 79. Kc3 {[%clk
0:00:45.5]} 79... Bd3 {[%clk 0:00:38.9]} 80. Be3 {[%clk 0:00:47]} 80... Kf3
{[%clk 0:00:39.9]} 81. Kb2 {[%clk 0:00:47]} 81... Bc4 {[%clk 0:00:40.8]} 82. Kc3
{[%clk 0:00:48.2]} 82... Bf1 {[%clk 0:00:42]} 83. Kb4 {[%clk 0:00:49.6]} 83...
Kg4 {[%clk 0:00:43.1]} 84. Kc3 {[%clk 0:00:50.6]} 84... Kf3 {[%clk 0:00:44.2]}
85. Kd2 {[%clk 0:00:52]} 85... Kg4 {[%clk 0:00:45.1]} 86. Kc3 {[%clk 0:00:52.9]}
1/2-1/2

[Event "*** Titled Tuesday Blitz"]
[Site "Chess.com"]
[Date "2019.11.05"]
[Round "4"]
[White "gemarin"]
[Black "Recombinant"]
[Result "0-1"]
[WhiteElo "2126"]
[BlackElo "2335"]
[TimeControl "180+2"]
[EndTime "13:54:47 PST"]
[Termination "Recombinant won by resignation"]

1. d4 {[%clk 0:03:01.9]} 1... Nf6 {[%clk 0:03:00.2]} 2. c4 {[%clk 0:03:02.3]}
2... e6 {[%clk 0:03:01.1]} 3. Nf3 {[%clk 0:03:01.9]} 3... Bb4+ {[%clk
0:03:00.7]} 4. Bd2 {[%clk 0:03:02.5]} 4... a5 {[%clk 0:02:59.7]} 5. g3 {[%clk
0:03:02.6]} 5... O-O {[%clk 0:03:00]} 6. Bg2 {[%clk 0:03:03.3]} 6... d5 {[%clk
0:03:00.9]} 7. O-O {[%clk 0:03:01.8]} 7... dxc4 {[%clk 0:03:01.6]} 8. Bg5 {[%clk
0:02:59.3]} 8... b5 {[%clk 0:02:59.9]} 9. a4 {[%clk 0:02:58.3]} 9... bxa4 {[%clk
0:03:00.4]} 10. Ne5 {[%clk 0:02:56.4]} 10... Ra6 {[%clk 0:02:52.5]} 11. Nc3
{[%clk 0:02:49.5]} 11... Rd6 {[%clk 0:02:50.2]} 12. e3 {[%clk 0:02:46.6]} 12...
Ba6 {[%clk 0:02:49.5]} 13. Nxa4 {[%clk 0:02:36.5]} 13... h6 {[%clk 0:02:47.6]}
14. Bxf6 {[%clk 0:02:33.7]} 14... Qxf6 {[%clk 0:02:48.3]} 15. Nc3 {[%clk
0:02:25.5]} 15... Nd7 {[%clk 0:02:42.6]} 16. Ne4 {[%clk 0:02:25]} 16... Qxe5
{[%clk 0:02:32.8]} 17. dxe5 {[%clk 0:02:23]} 17... Rxd1 {[%clk 0:02:33.8]} 18.
Rfxd1 {[%clk 0:02:22.9]} 18... Nxe5 {[%clk 0:02:35]} 19. Nc3 {[%clk 0:02:03.3]}
19... Nd3 {[%clk 0:02:34.2]} 20. Na4 {[%clk 0:02:03.6]} 20... Bb5 {[%clk
0:02:30.5]} 21. Rdb1 {[%clk 0:01:55.7]} 21... Rd8 {[%clk 0:02:17.4]} 22. Bf1
{[%clk 0:01:55.5]} 22... e5 {[%clk 0:02:15]} 23. Nc3 {[%clk 0:01:51.5]} 23... c6
{[%clk 0:02:04.1]} 24. Na2 {[%clk 0:01:46.5]} 24... Nc5 {[%clk 0:01:54.5]} 25.
Nxb4 {[%clk 0:01:37.9]} 25... axb4 {[%clk 0:01:55.2]} 26. Ra7 {[%clk 0:01:38.5]}
26... Rd2 {[%clk 0:01:47.7]} 27. Rc1 {[%clk 0:01:34.1]} 27... Nd3 {[%clk
0:01:46.2]} 28. Bxd3 {[%clk 0:01:29]} 28... cxd3 {[%clk 0:01:44.3]} 29. Rb1
{[%clk 0:01:27.8]} 29... e4 {[%clk 0:01:40.7]} 30. b3 {[%clk 0:01:28.3]} 30...
Rc2 {[%clk 0:01:39.9]} 31. Rd7 {[%clk 0:01:28.3]} 31... d2 {[%clk 0:01:39.7]}
32. Rd1 {[%clk 0:01:24.4]} 32... Bd3 {[%clk 0:01:40.6]} 33. Kg2 {[%clk
0:01:23.4]} 33... c5 {[%clk 0:01:37]} 34. f3 {[%clk 0:01:21]} 34... f5 {[%clk
0:01:16.7]} 35. Kf2 {[%clk 0:01:19.7]} 35... c4 {[%clk 0:01:07.9]} 36. bxc4
{[%clk 0:01:20]} 36... b3 {[%clk 0:01:09.2]} 37. c5 {[%clk 0:01:11.7]} 37... b2
{[%clk 0:01:10.1]} 38. Rb7 {[%clk 0:01:09.8]} 38... Rc1 {[%clk 0:00:59.4]} 39.
Rxd2 {[%clk 0:01:09.4]} 39... b1=Q {[%clk 0:01:00.2]} 40. Rxb1 {[%clk
0:01:08.6]} 40... Rxb1 {[%clk 0:01:01.6]} 41. g4 {[%clk 0:01:09.2]} 41... g6
{[%clk 0:01:01.2]} 42. Kg3 {[%clk 0:01:03.8]} 42... Rc1 {[%clk 0:01:02.1]} 43.
Kf4 {[%clk 0:01:04.3]} 43... Rxc5 {[%clk 0:01:02.1]} 44. h4 {[%clk 0:01:05.4]}
44... h5 {[%clk 0:01:00.9]} 45. Rb2 {[%clk 0:01:03.7]} 45... exf3 {[%clk
0:00:59]} 46. gxh5 {[%clk 0:01:02.7]} 46... gxh5 {[%clk 0:00:50.6]} 47. Kxf3
{[%clk 0:01:03.4]} 47... Rc4 {[%clk 0:00:45.1]} 48. Rb3 {[%clk 0:00:59.7]} 48...
Bc2 {[%clk 0:00:41.6]} 49. Rb2 {[%clk 0:00:59]} 49... Be4+ {[%clk 0:00:41.5]}
50. Kf4 {[%clk 0:00:58.8]} 50... Bd3+ {[%clk 0:00:39]} 51. Kg5 {[%clk
0:00:57.7]} 51... Rg4+ {[%clk 0:00:26.7]} 52. Kxh5 {[%clk 0:00:58.5]} 52... Kf7
{[%clk 0:00:25.8]} 53. Rb6 {[%clk 0:00:57.2]} 53... Be4 {[%clk 0:00:26.5]} 54.
Rb5 {[%clk 0:00:52.8]} 54... Rg3 {[%clk 0:00:27.1]} 55. Kh6 {[%clk 0:00:51.3]}
55... Rxe3 {[%clk 0:00:27.3]} 56. h5 {[%clk 0:00:48.5]} 56... Ra3 {[%clk
0:00:26.1]} 57. Kg5 {[%clk 0:00:48.7]} 57... Rg3+ {[%clk 0:00:26]} 58. Kf4
{[%clk 0:00:48.2]} 58... Rg4+ {[%clk 0:00:27.4]} 59. Ke5 {[%clk 0:00:48.7]}
59... Rh4 {[%clk 0:00:26.4]} 60. Ra5 {[%clk 0:00:41.5]} 60... Rxh5 {[%clk
0:00:25.3]} 61. Ra7+ {[%clk 0:00:42.8]} 61... Kg6 {[%clk 0:00:26.2]} 62. Ra6+
{[%clk 0:00:42.2]} 62... Kg5 {[%clk 0:00:26.6]} 63. Ra7 {[%clk 0:00:39.7]} 63...
Rh6 {[%clk 0:00:27]} 64. Rg7+ {[%clk 0:00:39.3]} 64... Rg6 {[%clk 0:00:22.6]}
65. Rf7 {[%clk 0:00:39.7]} 65... Kg4 {[%clk 0:00:23.4]} 66. Rf8 {[%clk
0:00:38.9]} 66... Ra6 {[%clk 0:00:18.6]} 67. Rg8+ {[%clk 0:00:38.6]} 67... Kf3
{[%clk 0:00:20]} 68. Rh8 {[%clk 0:00:35.1]} 68... Ra5+ {[%clk 0:00:20.7]} 69.
Kd4 {[%clk 0:00:35.9]} 69... Bc2 {[%clk 0:00:19.9]} 70. Rh3+ {[%clk 0:00:35.5]}
70... Kg4 {[%clk 0:00:21]} 71. Rc3 {[%clk 0:00:35.8]} 71... Be4 {[%clk
0:00:21.1]} 72. Rc7 {[%clk 0:00:35.1]} 72... Rd5+ {[%clk 0:00:22.1]} 73. Ke3
{[%clk 0:00:34.9]} 73... Rd3+ {[%clk 0:00:23.3]} 74. Kf2 {[%clk 0:00:35.8]}
74... Rd2+ {[%clk 0:00:23.3]} 75. Ke3 {[%clk 0:00:36.4]} 75... Rd3+ {[%clk
0:00:20.1]} 76. Ke2 {[%clk 0:00:37.3]} 76... Kf4 {[%clk 0:00:21]} 77. Rh7 {[%clk
0:00:37.3]} 77... Rg3 {[%clk 0:00:21.1]} 78. Rh4+ {[%clk 0:00:37.5]} 78... Rg4
{[%clk 0:00:22.4]} 79. Rh2 {[%clk 0:00:38.3]} 79... Rg2+ {[%clk 0:00:23.5]} 80.
Rxg2 {[%clk 0:00:38.8]} 80... Bxg2 {[%clk 0:00:24.8]} 81. Kf2 {[%clk 0:00:40.7]}
81... Bc6 {[%clk 0:00:25.3]} 82. Ke2 {[%clk 0:00:40.6]} 82... Kg3 {[%clk
0:00:26.7]} 83. Ke3 {[%clk 0:00:41.3]} 83... f4+ {[%clk 0:00:28]} 0-1

[Event "*** Titled Tuesday Blitz"]
[Site "Chess.com"]
[Date "2019.11.05"]
[Round "4"]
[White "timator"]
[Black "SCIM"]
[Result "0-1"]
[WhiteElo "2668"]
[BlackElo "2482"]
[TimeControl "180+2"]
[EndTime "13:54:56 PST"]
[Termination "SCIM won by resignation"]

1. d4 {[%clk 0:03:01.9]} 1... Nf6 {[%clk 0:03:00]} 2. Nf3 {[%clk 0:03:02.6]}
2... g6 {[%clk 0:03:00.8]} 3. c4 {[%clk 0:02:57.4]} 3... Bg7 {[%clk 0:02:56.6]}
4. g3 {[%clk 0:02:59.3]} 4... c6 {[%clk 0:02:49.6]} 5. Bg2 {[%clk 0:03:01.2]}
5... d5 {[%clk 0:02:49]} 6. O-O {[%clk 0:03:03.1]} 6... O-O {[%clk 0:02:48.2]}
7. cxd5 {[%clk 0:03:03.9]} 7... cxd5 {[%clk 0:02:46.5]} 8. Nc3 {[%clk
0:03:05.8]} 8... Ne4 {[%clk 0:02:45.3]} 9. Bf4 {[%clk 0:03:06.3]} 9... Nxc3
{[%clk 0:02:43.1]} 10. bxc3 {[%clk 0:03:08.2]} 10... Nc6 {[%clk 0:02:43.8]} 11.
Ne5 {[%clk 0:03:09.6]} 11... Nxe5 {[%clk 0:02:39.6]} 12. dxe5 {[%clk 0:03:11.5]}
12... Be6 {[%clk 0:02:38.3]} 13. Qb3 {[%clk 0:03:12.5]} 13... Qc7 {[%clk
0:02:31.6]} 14. Bxd5 {[%clk 0:02:46]} 14... Bxd5 {[%clk 0:02:31.1]} 15. Qxd5
{[%clk 0:02:47.9]} 15... Rfd8 {[%clk 0:02:30.4]} 16. Qe4 {[%clk 0:02:09.5]}
16... Qxc3 {[%clk 0:02:30.3]} 17. e6 {[%clk 0:01:40]} 17... Qc6 {[%clk
0:01:45.2]} 18. exf7+ {[%clk 0:01:38.1]} 18... Kxf7 {[%clk 0:01:44.8]} 19. Qxc6
{[%clk 0:01:39.4]} 19... bxc6 {[%clk 0:01:46.6]} 20. Rac1 {[%clk 0:01:40.3]}
20... Rac8 {[%clk 0:01:46.5]} 21. Rc4 {[%clk 0:01:41.4]} 21... Rd4 {[%clk
0:01:35.3]} 22. Rfc1 {[%clk 0:01:42.6]} 22... Rxc4 {[%clk 0:01:35.2]} 23. Rxc4
{[%clk 0:01:44.5]} 23... Ke6 {[%clk 0:01:27.2]} 24. Rc5 {[%clk 0:01:44.4]} 24...
Bd4 {[%clk 0:01:23.9]} 25. Ra5 {[%clk 0:01:40.1]} 25... Bb6 {[%clk 0:01:20]} 26.
Re5+ {[%clk 0:01:38.7]} 26... Kd7 {[%clk 0:01:19.7]} 27. Bg5 {[%clk 0:01:37.3]}
27... e6 {[%clk 0:01:17.4]} 28. Re4 {[%clk 0:01:35.6]} 28... c5 {[%clk
0:01:16.7]} 29. Bd2 {[%clk 0:01:12.9]} 29... c4 {[%clk 0:01:13]} 30. Bc3 {[%clk
0:01:14.1]} 30... Kd6 {[%clk 0:01:12.6]} 31. Kg2 {[%clk 0:01:14.7]} 31... Kd5
{[%clk 0:01:09.6]} 32. Re5+ {[%clk 0:01:13.2]} 32... Kd6 {[%clk 0:01:09.4]} 33.
g4 {[%clk 0:01:10.3]} 33... Rc5 {[%clk 0:00:59.3]} 34. Re4 {[%clk 0:01:07.3]}
34... Kd5 {[%clk 0:00:55.6]} 35. Rd4+ {[%clk 0:00:59.2]} 35... Kc6 {[%clk
0:00:56.1]} 36. f3 {[%clk 0:00:59.7]} 36... Bc7 {[%clk 0:00:50.7]} 37. Bb4
{[%clk 0:00:52.7]} 37... Rd5 {[%clk 0:00:44.6]} 38. Rxc4+ {[%clk 0:00:51.7]}
38... Kb7 {[%clk 0:00:43.7]} 39. Re4 {[%clk 0:00:49.8]} 39... e5 {[%clk
0:00:39.5]} 40. g5 {[%clk 0:00:46]} 40... a5 {[%clk 0:00:35.3]} 41. Bc3 {[%clk
0:00:47.3]} 41... Rc5 {[%clk 0:00:35.9]} 42. Re3 {[%clk 0:00:42.5]} 42... e4
{[%clk 0:00:27.5]} 43. h4 {[%clk 0:00:41.3]} 43... exf3+ {[%clk 0:00:27.6]} 44.
Rxf3 {[%clk 0:00:43]} 44... Rc4 {[%clk 0:00:24.6]} 45. Kh3 {[%clk 0:00:38.2]}
45... a4 {[%clk 0:00:23.8]} 46. Bh8 {[%clk 0:00:15.4]} 46... Rc2 {[%clk
0:00:20.9]} 47. Ra3 {[%clk 0:00:15.7]} 47... Rxe2 {[%clk 0:00:17.4]} 48. Rxa4
{[%clk 0:00:16.2]} 48... Rh2+ {[%clk 0:00:17.8]} 49. Kg4 {[%clk 0:00:17.6]}
49... Rg2+ {[%clk 0:00:19.2]} 50. Kf3 {[%clk 0:00:19]} 50... Rg3+ {[%clk
0:00:19.7]} 51. Ke2 {[%clk 0:00:19.6]} 51... Rg2+ {[%clk 0:00:15.2]} 52. Kf1
{[%clk 0:00:16.8]} 52... Rh2 {[%clk 0:00:13.2]} 53. Bf6 {[%clk 0:00:14.4]} 53...
Rc2 {[%clk 0:00:10.6]} 54. Rb4+ {[%clk 0:00:14.9]} 54... Kc6 {[%clk 0:00:10.4]}
55. a4 {[%clk 0:00:16.2]} 55... Bd6 {[%clk 0:00:10.5]} 56. Re4 {[%clk 0:00:17]}
56... Ra2 {[%clk 0:00:10.6]} 57. Rd4 {[%clk 0:00:16.9]} 57... Ra1+ {[%clk
0:00:08.2]} 58. Kg2 {[%clk 0:00:18.2]} 58... Ra2+ {[%clk 0:00:09.3]} 59. Kf3
{[%clk 0:00:19.3]} 59... Bc5 {[%clk 0:00:08.9]} 60. Rc4 {[%clk 0:00:14.9]} 60...
Kd5 {[%clk 0:00:09]} 61. Rg4 {[%clk 0:00:14.2]} 61... Rf2+ {[%clk 0:00:07.2]}
62. Kg3 {[%clk 0:00:15.5]} 62... Ra2 {[%clk 0:00:07.8]} 63. Kf3 {[%clk
0:00:11.5]} 63... Rf2+ {[%clk 0:00:08.1]} 64. Kg3 {[%clk 0:00:12.9]} 64... Ra2
{[%clk 0:00:10]} 65. h5 {[%clk 0:00:11.3]} 65... gxh5 {[%clk 0:00:10.2]} 66. Rh4
{[%clk 0:00:04.2]} 66... Bf2+ {[%clk 0:00:11.1]} 67. Kh3 {[%clk 0:00:06.1]}
67... Bxh4 {[%clk 0:00:12.1]} 68. Kxh4 {[%clk 0:00:08]} 68... Rxa4+ {[%clk
0:00:10.8]} 69. Kxh5 {[%clk 0:00:09.5]} 69... Ra2 {[%clk 0:00:09.5]} 70. Kh6
{[%clk 0:00:10.2]} 70... Rh2+ {[%clk 0:00:10.1]} 71. Kg7 {[%clk 0:00:11.8]}
71... Ke6 {[%clk 0:00:10.4]} 72. g6 {[%clk 0:00:13.1]} 72... hxg6 {[%clk
0:00:11.4]} 73. Kxg6 {[%clk 0:00:15]} 73... Rg2+ {[%clk 0:00:12.4]} 74. Bg5
{[%clk 0:00:16.6]} 74... Rg1 {[%clk 0:00:13.1]} 75. Kh5 {[%clk 0:00:16.8]} 75...
Kf5 {[%clk 0:00:13.7]} 76. Bh4 {[%clk 0:00:18]} 76... Rh1 {[%clk 0:00:14.6]} 0-1